[Event "Titled Tuesday Blitz March 29 Late 2022"]
[White "Vovk, Orest"]
[Black "Jaracz, Pawel"]
[WhiteFideId "14113490"]
[BlackFideId "1102222"]
[WhiteElo "2471"]
[BlackElo "2718"]
[Result "0-1"]
[Round "04"]
[TimeControl "180+1"]
[Date "2022.03.30"]
[WhiteClock "0:00:05"]
[BlackClock "0:00:03"]

1. h4 {[%clk 0:03:00]}  h5 {[%clk 0:02:58]} 2. Nf3 {[%clk 0:02:55]}  f6 {[%clk 0:02:58]} 3. d4 {[%clk 0:02:54]}  Kf7 {[%clk 0:02:58]} 4. e4 {[%clk 0:02:54]}  e6 {[%clk 0:02:58]} 5. d5 {[%clk 0:02:53]}  Qe8 {[%clk 0:02:52]} 6. dxe6+ {[%clk 0:02:45]}  dxe6 {[%clk 0:02:52]} 7. Bc4 {[%clk 0:02:45]}  Nd7 {[%clk 0:02:47]} 8. Nc3 {[%clk 0:02:42]}  Bb4 {[%clk 0:02:42]} 9. O-O {[%clk 0:02:39]}  Bxc3 {[%clk 0:02:37]} 10. bxc3 {[%clk 0:02:38]}  Nh6 {[%clk 0:02:36]} 11. e5 {[%clk 0:02:31]}  Nf5 {[%clk 0:02:28]} 12. Re1 {[%clk 0:02:21]}  Nb6 {[%clk 0:02:26]} 13. Bb3 {[%clk 0:02:18]}  c5 {[%clk 0:02:21]} 14. Qd3 {[%clk 0:02:12]}  Kg6 {[%clk 0:02:12]} 15. Qe4 {[%clk 0:01:54]}  Bd7 {[%clk 0:01:29]} 16. exf6 {[%clk 0:01:47]}  gxf6 {[%clk 0:01:29]} 17. Bxe6 {[%clk 0:01:46]}  Bxe6 {[%clk 0:01:29]} 18. Qxe6 {[%clk 0:01:47]}  Qxe6 {[%clk 0:01:28]} 19. Rxe6 {[%clk 0:01:48]}  Rhe8 {[%clk 0:01:25]} 20. Rxe8 {[%clk 0:01:40]}  Rxe8 {[%clk 0:01:26]} 21. Bd2 {[%clk 0:01:38]}  Nc4 {[%clk 0:01:24]} 22. g3 {[%clk 0:01:28]}  Re6 {[%clk 0:01:12]} 23. Rb1 {[%clk 0:01:15]}  Re2 {[%clk 0:01:04]} 24. Rd1 {[%clk 0:01:12]}  Nfd6 {[%clk 0:00:37]} 25. Kf1 {[%clk 0:01:06]}  Re6 {[%clk 0:00:36]} 26. Bf4 {[%clk 0:01:01]}  Ne4 {[%clk 0:00:35]} 27. Rd7 {[%clk 0:00:59]}  Rb6 {[%clk 0:00:34]} 28. Re7 {[%clk 0:00:51]}  Nxc3 {[%clk 0:00:32]} 29. Rc7 {[%clk 0:00:41]}  Ne4 {[%clk 0:00:30]} 30. Ke2 {[%clk 0:00:28]}  Rb4 {[%clk 0:00:19]} 31. Be3 {[%clk 0:00:13]}  Ra4 {[%clk 0:00:17]} 32. Bxc5 {[%clk 0:00:07]}  b6 {[%clk 0:00:09]} 33. Bf8 {[%clk 0:00:07]}  Ne5 {[%clk 0:00:06]} 34. Nxe5+ {[%clk 0:00:03]}  fxe5 {[%clk 0:00:07]} 35. Rc6+ {[%clk 0:00:03]}  Kf5 {[%clk 0:00:07]} 36. Be7 {[%clk 0:00:02]}  Nc3+ {[%clk 0:00:08]} 37. Kf1 {[%clk 0:00:02]}  Nd5 {[%clk 0:00:08]} 38. Kg2 {[%clk 0:00:03]}  Nxe7 {[%clk 0:00:08]} 39. Rc7 {[%clk 0:00:04]}  Nd5 {[%clk 0:00:08]} 40. Rd7 {[%clk 0:00:04]}  Nf6 {[%clk 0:00:08]} 41. Rf7 {[%clk 0:00:04]}  Rxa2 {[%clk 0:00:06]} 42. f3 {[%clk 0:00:03]}  Rxc2+ {[%clk 0:00:06]} 43. Kh3 {[%clk 0:00:04]}  Rc3 {[%clk 0:00:06]} 44. Kg2 {[%clk 0:00:03]}  e4 {[%clk 0:00:05]} 45. fxe4+ {[%clk 0:00:02]}  Ke6 {[%clk 0:00:06]} 46. Rxa7 {[%clk 0:00:02]}  Nxe4 {[%clk 0:00:06]} 47. Ra6 {[%clk 0:00:03]}  Rxg3+ {[%clk 0:00:05]} 48. Kh2 {[%clk 0:00:04]}  Rb3 {[%clk 0:00:06]} 49. Ra8 {[%clk 0:00:04]}  Kf5 {[%clk 0:00:06]} 50. Rf8+ {[%clk 0:00:04]}  Nf6 {[%clk 0:00:06]} 51. Rc8 {[%clk 0:00:03]}  b5 {[%clk 0:00:06]} 52. Rc5+ {[%clk 0:00:03]}  Kg4 {[%clk 0:00:06]} 53. Rc6 {[%clk 0:00:04]}  Ne4 {[%clk 0:00:06]} 54. Rg6+ {[%clk 0:00:03]}  Kxh4 {[%clk 0:00:03]} 55. Re6 {[%clk 0:00:04]}  Rb2+ {[%clk 0:00:03]} 56. Kg1 {[%clk 0:00:04]}  Ng5 {[%clk 0:00:03]} 57. Re5 {[%clk 0:00:04]}  Kg4 {[%clk 0:00:03]} 58. Rc5 {[%clk 0:00:05]}  h4 {[%clk 0:00:04]} 59. Rd5 {[%clk 0:00:05]}  Nf3+ {[%clk 0:00:04]} 60. Kh1 {[%clk 0:00:05]}  Rh2# {[%clk 0:00:03]} 0-1


[Site "https://www.chess.com"]

[Event "Titled Tuesday Blitz March 29 Late 2022"]
[White "Vusatiuk, Vladimir"]
[Black "Almedina Ortiz, Edgardo J."]
[WhiteFideId "14118610"]
[BlackFideId "3100197"]
[WhiteElo "2157"]
[BlackElo "2217"]
[Result "1-0"]
[Round "04"]
[TimeControl "180+1"]
[Date "2022.03.30"]
[WhiteClock "0:00:29"]
[BlackClock "0:00:04"]

1. Nf3 {[%clk 0:03:00]}  d5 {[%clk 0:02:59]} 2. h4 {[%clk 0:02:56]}  Bf5 {[%clk 0:02:42]} 3. d3 {[%clk 0:02:56]}  h6 {[%clk 0:02:39]} 4. g3 {[%clk 0:02:46]}  e6 {[%clk 0:02:38]} 5. Bg2 {[%clk 0:02:46]}  Nf6 {[%clk 0:02:37]} 6. c4 {[%clk 0:02:34]}  c6 {[%clk 0:02:36]} 7. Qb3 {[%clk 0:02:26]}  Qb6 {[%clk 0:02:30]} 8. Be3 {[%clk 0:02:18]}  Qxb3 {[%clk 0:02:18]} 9. axb3 {[%clk 0:02:19]}  a6 {[%clk 0:02:17]} 10. Nc3 {[%clk 0:02:06]}  Nbd7 {[%clk 0:02:16]} 11. O-O {[%clk 0:02:00]}  Ng4 {[%clk 0:01:43]} 12. Bd2 {[%clk 0:01:55]}  Nc5 {[%clk 0:01:42]} 13. Nd4 {[%clk 0:01:49]}  Bh7 {[%clk 0:01:32]} 14. b4 {[%clk 0:01:46]}  e5 {[%clk 0:01:03]} 15. Nxc6 {[%clk 0:01:25]}  Nb3 {[%clk 0:00:39]} 16. Nxd5 {[%clk 0:01:25]}  bxc6 {[%clk 0:00:30]} 17. Nc7+ {[%clk 0:01:22]}  Kd7 {[%clk 0:00:30]} 18. Nxa8 {[%clk 0:01:21]}  Nxd2 {[%clk 0:00:27]} 19. Rfd1 {[%clk 0:01:18]}  Bxb4 {[%clk 0:00:26]} 20. Rxa6 {[%clk 0:01:15]}  e4 {[%clk 0:00:16]} 21. dxe4 {[%clk 0:01:08]}  Ke7 {[%clk 0:00:11]} 22. Ra7+ {[%clk 0:00:48]}  Ke6 {[%clk 0:00:09]} 23. Bh3 {[%clk 0:00:43]}  h5 {[%clk 0:00:08]} 24. Nc7+ {[%clk 0:00:39]}  Ke5 {[%clk 0:00:04]} 25. Ra4 {[%clk 0:00:29]} 1-0


[Site "https://www.chess.com"]

[Event "Titled Tuesday Blitz March 29 Late 2022"]
[White "Zivkovic, Nemanja"]
[Black "Terletsky, Oleg"]
[WhiteFideId "942154"]
[BlackFideId "14116774"]
[WhiteElo "2388"]
[BlackElo "2064"]
[Result "1-0"]
[Round "04"]
[TimeControl "180+1"]
[Date "2022.03.30"]
[WhiteClock "0:00:59"]
[BlackClock "0:00:02"]

1. e4 {[%clk 0:02:55]}  e5 {[%clk 0:02:59]} 2. Nf3 {[%clk 0:02:54]}  Nc6 {[%clk 0:02:57]} 3. Bb5 {[%clk 0:02:53]}  a6 {[%clk 0:02:57]} 4. Ba4 {[%clk 0:02:52]}  Nf6 {[%clk 0:02:57]} 5. d3 {[%clk 0:02:52]}  b5 {[%clk 0:02:56]} 6. Bb3 {[%clk 0:02:52]}  Be7 {[%clk 0:02:56]} 7. c3 {[%clk 0:02:51]}  d6 {[%clk 0:02:51]} 8. O-O {[%clk 0:02:50]}  O-O {[%clk 0:02:52]} 9. a4 {[%clk 0:02:50]}  Bb7 {[%clk 0:02:48]} 10. Re1 {[%clk 0:02:49]}  Na5 {[%clk 0:02:47]} 11. Bc2 {[%clk 0:02:50]}  c5 {[%clk 0:02:48]} 12. Nbd2 {[%clk 0:02:50]}  Re8 {[%clk 0:02:47]} 13. Nf1 {[%clk 0:02:50]}  Bf8 {[%clk 0:02:46]} 14. Ng3 {[%clk 0:02:50]}  d5 {[%clk 0:02:42]} 15. Bg5 {[%clk 0:02:48]}  d4 {[%clk 0:02:42]} 16. axb5 {[%clk 0:02:40]}  axb5 {[%clk 0:02:40]} 17. cxd4 {[%clk 0:02:40]}  cxd4 {[%clk 0:02:34]} 18. Bd2 {[%clk 0:02:21]}  Nc6 {[%clk 0:02:28]} 19. Bb3 {[%clk 0:02:21]}  h6 {[%clk 0:02:22]} 20. Rxa8 {[%clk 0:02:19]}  Qxa8 {[%clk 0:02:18]} 21. Nh4 {[%clk 0:02:19]}  Bc8 {[%clk 0:02:04]} 22. Ngf5 {[%clk 0:02:07]}  Be6 {[%clk 0:02:01]} 23. Bxe6 {[%clk 0:02:04]}  fxe6 {[%clk 0:01:46]} 24. Ng3 {[%clk 0:02:04]}  Qa2 {[%clk 0:01:41]} 25. Qf3 {[%clk 0:01:49]}  Bb4 {[%clk 0:01:08]} 26. Bxb4 {[%clk 0:01:23]}  Nxb4 {[%clk 0:01:09]} 27. Nh5 {[%clk 0:01:21]}  Rf8 {[%clk 0:00:36]} 28. Ng6 {[%clk 0:01:20]}  Nxh5 {[%clk 0:00:11]} 29. Qxf8+ {[%clk 0:01:19]}  Kh7 {[%clk 0:00:12]} 30. Nxe5 {[%clk 0:01:12]}  Qxb2 {[%clk 0:00:11]} 31. Qf7 {[%clk 0:01:12]}  Nf6 {[%clk 0:00:09]} 32. Qxe6 {[%clk 0:01:06]}  Qd2 {[%clk 0:00:07]} 33. Qf5+ {[%clk 0:01:06]}  Kg8 {[%clk 0:00:07]} 34. Ra1 {[%clk 0:01:05]}  Kf8 {[%clk 0:00:02]} 35. Qe6 {[%clk 0:00:59]} 1-0


[Site "https://www.chess.com"]

[Event "Titled Tuesday Blitz March 29 Late 2022"]
[White "Adewumi, Tanitoluwa"]
[Black "Gracia Alvarez, Gerardo Antonio"]
[WhiteFideId "30966396"]
[BlackFideId "5109124"]
[WhiteElo "2568"]
[BlackElo "2139"]
[Result "1-0"]
[Round "05"]
[TimeControl "180+1"]
[Date "2022.03.30"]
[WhiteClock "0:00:01"]
[BlackClock "0:00:01"]

1. e4 {[%clk 0:02:55]}  c5 {[%clk 0:03:00]} 2. Nf3 {[%clk 0:02:49]}  Nc6 {[%clk 0:03:00]} 3. Nc3 {[%clk 0:02:41]}  g6 {[%clk 0:02:58]} 4. d4 {[%clk 0:02:34]}  cxd4 {[%clk 0:02:57]} 5. Nxd4 {[%clk 0:02:35]}  Bg7 {[%clk 0:02:57]} 6. Be3 {[%clk 0:02:35]}  Nf6 {[%clk 0:02:57]} 7. Bc4 {[%clk 0:02:33]}  O-O {[%clk 0:02:41]} 8. Bb3 {[%clk 0:02:29]}  d6 {[%clk 0:02:36]} 9. f3 {[%clk 0:02:22]}  Nxd4 {[%clk 0:02:02]} 10. Bxd4 {[%clk 0:02:20]}  Be6 {[%clk 0:01:58]} 11. Qd2 {[%clk 0:02:15]}  Qa5 {[%clk 0:01:55]} 12. O-O-O {[%clk 0:02:10]}  Rfc8 {[%clk 0:01:54]} 13. Kb1 {[%clk 0:02:02]}  b5 {[%clk 0:01:38]} 14. Rhe1 {[%clk 0:01:23]}  b4 {[%clk 0:01:25]} 15. Nd5 {[%clk 0:01:16]}  Bxd5 {[%clk 0:00:59]} 16. exd5 {[%clk 0:01:12]}  Rc7 {[%clk 0:00:56]} 17. a4 {[%clk 0:01:05]}  Rac8 {[%clk 0:00:42]} 18. g4 {[%clk 0:01:00]}  Qa6 {[%clk 0:00:25]} 19. h4 {[%clk 0:00:38]}  Qb7 {[%clk 0:00:25]} 20. h5 {[%clk 0:00:29]}  a5 {[%clk 0:00:14]} 21. hxg6 {[%clk 0:00:21]}  hxg6 {[%clk 0:00:14]} 22. Re2 {[%clk 0:00:15]}  Rc5 {[%clk 0:00:10]} 23. Rh2 {[%clk 0:00:03]}  Qc7 {[%clk 0:00:06]} 24. Rdh1 {[%clk 0:00:01]}  Kf8 {[%clk 0:00:05]} 25. g5 {[%clk 0:00:01]}  Nh5 {[%clk 0:00:05]} 26. Rxh5 {[%clk 0:00:01]}  gxh5 {[%clk 0:00:04]} 27. Rxh5 {[%clk 0:00:02]}  Rxc2 {[%clk 0:00:02]} 28. Bxc2 {[%clk 0:00:02]}  Bxd4 {[%clk 0:00:01]} 29. Bd3 {[%clk 0:00:01]}  Qc1+ {[%clk 0:00:01]} 30. Qxc1 {[%clk 0:00:01]} 1-0


[Site "https://www.chess.com"]

[Event "Titled Tuesday Blitz March 29 Late 2022"]
[White "Almedina Ortiz, Edgardo J."]
[Black "Miszler, Levente"]
[WhiteFideId "3100197"]
[BlackFideId "763276"]
[WhiteElo "2217"]
[BlackElo "1966"]
[Result "1-0"]
[Round "05"]
[TimeControl "180+1"]
[Date "2022.03.30"]
[WhiteClock "0:00:19"]
[BlackClock "0:00:06"]

1. d4 {[%clk 0:02:58]}  d5 {[%clk 0:02:58]} 2. c4 {[%clk 0:02:58]}  c6 {[%clk 0:02:58]} 3. Nf3 {[%clk 0:02:54]}  Nf6 {[%clk 0:02:56]} 4. g3 {[%clk 0:02:54]}  e6 {[%clk 0:02:53]} 5. Bg2 {[%clk 0:02:54]}  dxc4 {[%clk 0:02:53]} 6. Ne5 {[%clk 0:02:51]}  Nbd7 {[%clk 0:02:49]} 7. Nxc4 {[%clk 0:02:50]}  Be7 {[%clk 0:02:49]} 8. O-O {[%clk 0:02:49]}  O-O {[%clk 0:02:49]} 9. Nc3 {[%clk 0:02:46]}  b5 {[%clk 0:02:47]} 10. Bxc6 {[%clk 0:02:33]}  bxc4 {[%clk 0:02:47]} 11. Bxa8 {[%clk 0:02:32]}  Nb6 {[%clk 0:02:46]} 12. Bg2 {[%clk 0:02:30]}  Nbd5 {[%clk 0:02:39]} 13. e4 {[%clk 0:02:11]}  Nb4 {[%clk 0:02:36]} 14. Be3 {[%clk 0:02:05]}  Bd7 {[%clk 0:02:29]} 15. b3 {[%clk 0:02:02]}  Qc7 {[%clk 0:02:23]} 16. bxc4 {[%clk 0:01:59]}  Qxc4 {[%clk 0:02:23]} 17. Qb3 {[%clk 0:01:58]}  Qa6 {[%clk 0:02:06]} 18. Rfc1 {[%clk 0:01:55]}  Rb8 {[%clk 0:01:52]} 19. a3 {[%clk 0:01:45]}  Nc6 {[%clk 0:01:51]} 20. Qc2 {[%clk 0:01:44]}  Na5 {[%clk 0:01:44]} 21. Na4 {[%clk 0:01:26]}  Nb3 {[%clk 0:01:25]} 22. Nc5 {[%clk 0:01:11]}  Bxc5 {[%clk 0:01:24]} 23. dxc5 {[%clk 0:01:11]}  Nxa1 {[%clk 0:01:20]} 24. Rxa1 {[%clk 0:01:12]}  Bc6 {[%clk 0:01:19]} 25. f3 {[%clk 0:00:56]}  Nd7 {[%clk 0:01:16]} 26. Bf4 {[%clk 0:00:52]}  Rc8 {[%clk 0:01:11]} 27. Bd6 {[%clk 0:00:51]}  Ba4 {[%clk 0:01:06]} 28. Qf2 {[%clk 0:00:48]}  Bb5 {[%clk 0:00:54]} 29. Qe3 {[%clk 0:00:46]}  Qa4 {[%clk 0:00:51]} 30. e5 {[%clk 0:00:42]}  Bc6 {[%clk 0:00:49]} 31. Rc1 {[%clk 0:00:41]}  Bd5 {[%clk 0:00:45]} 32. h4 {[%clk 0:00:38]}  Qc6 {[%clk 0:00:40]} 33. h5 {[%clk 0:00:35]}  h6 {[%clk 0:00:35]} 34. Kh2 {[%clk 0:00:34]}  a5 {[%clk 0:00:27]} 35. Rc3 {[%clk 0:00:34]}  Qb5 {[%clk 0:00:25]} 36. Bf1 {[%clk 0:00:33]}  Qb2+ {[%clk 0:00:24]} 37. Kh3 {[%clk 0:00:31]}  Nb8 {[%clk 0:00:24]} 38. Bd3 {[%clk 0:00:30]}  Nc6 {[%clk 0:00:23]} 39. Rc2 {[%clk 0:00:27]}  Qb3 {[%clk 0:00:22]} 40. f4 {[%clk 0:00:23]}  a4 {[%clk 0:00:20]} 41. Rc3 {[%clk 0:00:21]}  Qa2 {[%clk 0:00:18]} 42. Bc2 {[%clk 0:00:19]}  Ra8 {[%clk 0:00:13]} 43. Qd3 {[%clk 0:00:19]}  f5 {[%clk 0:00:06]} 44. exf6 {[%clk 0:00:18]}  Qa1 {[%clk 0:00:05]} 45. Qh7+ {[%clk 0:00:18]}  Kf7 {[%clk 0:00:06]} 46. Qxg7+ {[%clk 0:00:18]}  Ke8 {[%clk 0:00:06]} 47. f7+ {[%clk 0:00:18]}  Kd7 {[%clk 0:00:06]} 48. f8=Q+ {[%clk 0:00:19]} 1-0


[Site "https://www.chess.com"]

[Event "Titled Tuesday Blitz March 29 Late 2022"]
[White "Al-Tarboush, Ward"]
[Black "Ronka, Erik"]
[WhiteFideId "7601450"]
[BlackFideId "505080"]
[WhiteElo "2276"]
[BlackElo "2264"]
[Result "1-0"]
[Round "05"]
[TimeControl "180+1"]
[Date "2022.03.30"]
[WhiteClock "0:00:13"]
[BlackClock "0:00:01"]

1. e4 {[%clk 0:02:59]}  c5 {[%clk 0:02:43]} 2. Nf3 {[%clk 0:02:59]}  e6 {[%clk 0:02:42]} 3. d4 {[%clk 0:02:59]}  cxd4 {[%clk 0:02:41]} 4. Nxd4 {[%clk 0:03:00]}  a6 {[%clk 0:02:41]} 5. Bd3 {[%clk 0:02:59]}  Qc7 {[%clk 0:02:38]} 6. O-O {[%clk 0:02:59]}  Nf6 {[%clk 0:02:38]} 7. c4 {[%clk 0:02:59]}  Be7 {[%clk 0:02:24]} 8. Nc3 {[%clk 0:02:59]}  O-O {[%clk 0:02:21]} 9. Qe2 {[%clk 0:02:58]}  d6 {[%clk 0:02:21]} 10. Be3 {[%clk 0:02:58]}  b6 {[%clk 0:02:18]} 11. f4 {[%clk 0:02:58]}  Nbd7 {[%clk 0:02:19]} 12. b3 {[%clk 0:02:57]}  Bb7 {[%clk 0:02:19]} 13. Bf2 {[%clk 0:02:56]}  Rfe8 {[%clk 0:02:08]} 14. Rad1 {[%clk 0:02:56]}  Rad8 {[%clk 0:02:03]} 15. Nf3 {[%clk 0:02:51]}  Ng4 {[%clk 0:01:38]} 16. h3 {[%clk 0:02:51]}  Nxf2 {[%clk 0:01:37]} 17. Qxf2 {[%clk 0:02:52]}  d5 {[%clk 0:01:24]} 18. Kh1 {[%clk 0:02:44]}  dxe4 {[%clk 0:01:22]} 19. Nxe4 {[%clk 0:02:45]}  Nf6 {[%clk 0:01:19]} 20. Neg5 {[%clk 0:02:45]}  Qxf4 {[%clk 0:01:12]} 21. Qc2 {[%clk 0:02:42]}  h6 {[%clk 0:00:49]} 22. Nxf7 {[%clk 0:02:34]}  Kxf7 {[%clk 0:00:31]} 23. Bg6+ {[%clk 0:02:34]}  Kg8 {[%clk 0:00:30]} 24. Bxe8 {[%clk 0:02:33]}  Rxe8 {[%clk 0:00:21]} 25. Nd4 {[%clk 0:02:32]}  Qg3 {[%clk 0:00:18]} 26. Rd3 {[%clk 0:02:31]}  Qe5 {[%clk 0:00:13]} 27. Nf3 {[%clk 0:02:16]}  Qc7 {[%clk 0:00:13]} 28. Re3 {[%clk 0:02:12]}  Bc5 {[%clk 0:00:13]} 29. Rc3 {[%clk 0:01:20]}  e5 {[%clk 0:00:13]} 30. Qg6 {[%clk 0:00:57]}  e4 {[%clk 0:00:13]} 31. Nh4 {[%clk 0:00:52]}  Qf7 {[%clk 0:00:13]} 32. Rxf6 {[%clk 0:00:46]}  Qxf6 {[%clk 0:00:08]} 33. Qxe8+ {[%clk 0:00:46]}  Kh7 {[%clk 0:00:09]} 34. Rc1 {[%clk 0:00:33]}  e3 {[%clk 0:00:09]} 35. Qh5 {[%clk 0:00:20]}  Be7 {[%clk 0:00:08]} 36. Qf5+ {[%clk 0:00:15]}  Qxf5 {[%clk 0:00:08]} 37. Nxf5 {[%clk 0:00:16]}  Bg5 {[%clk 0:00:06]} 38. Re1 {[%clk 0:00:16]}  Be4 {[%clk 0:00:02]} 39. Nxe3 {[%clk 0:00:15]}  Bh4 {[%clk 0:00:02]} 40. Rd1 {[%clk 0:00:14]}  g5 {[%clk 0:00:01]} 41. Ng4 {[%clk 0:00:13]}  Bg3 {[%clk 0:00:01]} 42. Rd7+ {[%clk 0:00:13]} 1-0


[Site "https://www.chess.com"]

[Event "Titled Tuesday Blitz March 29 Late 2022"]
[White "Ambartsumova, Karina"]
[Black "Golubev, Mikhail"]
[WhiteFideId "4166299"]
[BlackFideId "14100983"]
[WhiteElo "2262"]
[BlackElo "2374"]
[Result "1-0"]
[Round "05"]
[TimeControl "180+1"]
[Date "2022.03.30"]
[WhiteClock "0:00:07"]
[BlackClock "0:00:01"]

1. c4 {[%clk 0:03:00]}  g6 {[%clk 0:02:57]} 2. Nf3 {[%clk 0:03:00]}  Bg7 {[%clk 0:02:57]} 3. g3 {[%clk 0:03:00]}  e5 {[%clk 0:02:56]} 4. Nc3 {[%clk 0:02:59]}  Nc6 {[%clk 0:02:55]} 5. Bg2 {[%clk 0:02:59]}  f5 {[%clk 0:02:53]} 6. d3 {[%clk 0:02:59]}  d6 {[%clk 0:02:51]} 7. O-O {[%clk 0:02:59]}  h6 {[%clk 0:02:51]} 8. Ne1 {[%clk 0:02:49]}  Nf6 {[%clk 0:02:47]} 9. a3 {[%clk 0:02:48]}  O-O {[%clk 0:02:42]} 10. b4 {[%clk 0:02:47]}  g5 {[%clk 0:02:36]} 11. b5 {[%clk 0:02:47]}  Ne7 {[%clk 0:02:36]} 12. Nc2 {[%clk 0:02:37]}  f4 {[%clk 0:02:33]} 13. d4 {[%clk 0:02:28]}  Qe8 {[%clk 0:01:57]} 14. dxe5 {[%clk 0:02:14]}  dxe5 {[%clk 0:01:57]} 15. Nb4 {[%clk 0:02:15]}  c6 {[%clk 0:01:14]} 16. bxc6 {[%clk 0:02:05]}  bxc6 {[%clk 0:01:15]} 17. Qd6 {[%clk 0:02:05]}  Bd7 {[%clk 0:00:59]} 18. Bb2 {[%clk 0:01:43]}  Nf5 {[%clk 0:00:59]} 19. Qc5 {[%clk 0:01:43]}  Qh5 {[%clk 0:00:53]} 20. Ne4 {[%clk 0:00:57]}  Nxe4 {[%clk 0:00:48]} 21. Bxe4 {[%clk 0:00:58]}  Qxe2 {[%clk 0:00:46]} 22. Bc2 {[%clk 0:00:54]}  fxg3 {[%clk 0:00:39]} 23. hxg3 {[%clk 0:00:53]}  Nh4 {[%clk 0:00:29]} 24. Qe3 {[%clk 0:00:29]}  Qg4 {[%clk 0:00:22]} 25. Be4 {[%clk 0:00:28]}  Nf3+ {[%clk 0:00:19]} 26. Bxf3 {[%clk 0:00:24]}  Rxf3 {[%clk 0:00:19]} 27. Qd2 {[%clk 0:00:23]}  Raf8 {[%clk 0:00:17]} 28. Nc2 {[%clk 0:00:17]}  Be6 {[%clk 0:00:14]} 29. Ne3 {[%clk 0:00:17]}  Qh3 {[%clk 0:00:12]} 30. Ng2 {[%clk 0:00:16]}  Bf5 {[%clk 0:00:10]} 31. Rae1 {[%clk 0:00:14]}  Re8 {[%clk 0:00:07]} 32. Qe2 {[%clk 0:00:13]}  Bg4 {[%clk 0:00:06]} 33. Qd2 {[%clk 0:00:13]}  Rf5 {[%clk 0:00:06]} 34. Re3 {[%clk 0:00:10]}  Bf3 {[%clk 0:00:05]} 35. Rxf3 {[%clk 0:00:10]}  Rxf3 {[%clk 0:00:06]} 36. Qd6 {[%clk 0:00:10]}  Rf6 {[%clk 0:00:04]} 37. Qc7 {[%clk 0:00:09]}  Rf7 {[%clk 0:00:03]} 38. Qxc6 {[%clk 0:00:09]}  Qe6 {[%clk 0:00:04]} 39. Qe4 {[%clk 0:00:09]}  Qf5 {[%clk 0:00:03]} 40. Qe2 {[%clk 0:00:08]}  Qf3 {[%clk 0:00:03]} 41. Qc2 {[%clk 0:00:08]}  Qf5 {[%clk 0:00:03]} 42. Qc3 {[%clk 0:00:07]}  Qe6 {[%clk 0:00:03]} 43. Ne3 {[%clk 0:00:07]}  e4 {[%clk 0:00:04]} 44. Qc2 {[%clk 0:00:07]}  Bxb2 {[%clk 0:00:03]} 45. Qxb2 {[%clk 0:00:08]}  Qe5 {[%clk 0:00:04]} 46. Qc2 {[%clk 0:00:08]}  Qd4 {[%clk 0:00:03]} 47. c5 {[%clk 0:00:08]}  Qd3 {[%clk 0:00:03]} 48. Rc1 {[%clk 0:00:07]}  Ref8 {[%clk 0:00:02]} 49. c6 {[%clk 0:00:06]}  Qxc2 {[%clk 0:00:02]} 50. Rxc2 {[%clk 0:00:06]}  Rc8 {[%clk 0:00:02]} 51. Nd5 {[%clk 0:00:05]}  Kf8 {[%clk 0:00:03]} 52. c7 {[%clk 0:00:05]}  Rd7 {[%clk 0:00:03]} 53. Rc5 {[%clk 0:00:05]}  Kf7 {[%clk 0:00:03]} 54. Kf1 {[%clk 0:00:04]}  Ke6 {[%clk 0:00:04]} 55. Ne3 {[%clk 0:00:04]}  Rdxc7 {[%clk 0:00:04]} 56. Ra5 {[%clk 0:00:04]}  Rc1+ {[%clk 0:00:04]} 57. Kg2 {[%clk 0:00:04]}  R1c7 {[%clk 0:00:04]} 58. Ra6+ {[%clk 0:00:04]}  Rc6 {[%clk 0:00:04]} 59. Rxa7 {[%clk 0:00:04]}  R8c7 {[%clk 0:00:05]} 60. Ra4 {[%clk 0:00:04]}  Rc8 {[%clk 0:00:05]} 61. Rxe4+ {[%clk 0:00:04]}  Kf6 {[%clk 0:00:05]} 62. Ra4 {[%clk 0:00:05]}  Kg6 {[%clk 0:00:06]} 63. Ra5 {[%clk 0:00:05]}  h5 {[%clk 0:00:06]} 64. a4 {[%clk 0:00:05]}  Kh6 {[%clk 0:00:06]} 65. Rb5 {[%clk 0:00:05]}  Rf6 {[%clk 0:00:06]} 66. a5 {[%clk 0:00:05]}  Rcf8 {[%clk 0:00:06]} 67. Rb2 {[%clk 0:00:05]}  Ra6 {[%clk 0:00:06]} 68. Ra2 {[%clk 0:00:05]}  Rfa8 {[%clk 0:00:06]} 69. Nc4 {[%clk 0:00:06]}  Rc6 {[%clk 0:00:06]} 70. Ne3 {[%clk 0:00:05]}  Rc5 {[%clk 0:00:05]} 71. a6 {[%clk 0:00:05]}  Rc6 {[%clk 0:00:06]} 72. a7 {[%clk 0:00:04]}  Rc7 {[%clk 0:00:06]} 73. Ra6+ {[%clk 0:00:04]}  Kh7 {[%clk 0:00:07]} 74. Nd5 {[%clk 0:00:04]}  Rcxa7 {[%clk 0:00:05]} 75. Rc6 {[%clk 0:00:03]}  Rg7 {[%clk 0:00:04]} 76. Nf6+ {[%clk 0:00:04]}  Kg6 {[%clk 0:00:04]} 77. Ng4+ {[%clk 0:00:02]}  Kf7 {[%clk 0:00:03]} 78. Ne5+ {[%clk 0:00:01]}  Kg8 {[%clk 0:00:03]} 79. Nf3 {[%clk 0:00:01]}  Kh8 {[%clk 0:00:04]} 80. Nd4 {[%clk 0:00:02]}  Kh7 {[%clk 0:00:04]} 81. Nf5 {[%clk 0:00:01]}  Rg6 {[%clk 0:00:04]} 82. Rc7+ {[%clk 0:00:02]}  Kh8 {[%clk 0:00:05]} 83. Ne3 {[%clk 0:00:02]}  Rf6 {[%clk 0:00:05]} 84. Rc5 {[%clk 0:00:03]}  Rg6 {[%clk 0:00:05]} 85. Rf5 {[%clk 0:00:03]}  Rgg8 {[%clk 0:00:05]} 86. Rc5 {[%clk 0:00:03]}  Raf8 {[%clk 0:00:06]} 87. Rc6 {[%clk 0:00:03]}  Rg7 {[%clk 0:00:06]} 88. Rh6+ {[%clk 0:00:03]}  Rh7 {[%clk 0:00:06]} 89. Rc6 {[%clk 0:00:04]}  Rhf7 {[%clk 0:00:06]} 90. Rc2 {[%clk 0:00:03]}  Kg7 {[%clk 0:00:07]} 91. Nd5 {[%clk 0:00:03]}  Kg6 {[%clk 0:00:07]} 92. Ne3 {[%clk 0:00:04]}  Kg7 {[%clk 0:00:07]} 93. Nd5 {[%clk 0:00:04]}  Rf5 {[%clk 0:00:07]} 94. Ne3 {[%clk 0:00:04]}  Re5 {[%clk 0:00:07]} 95. Rc7+ {[%clk 0:00:04]}  Rf7 {[%clk 0:00:07]} 96. Rc6 {[%clk 0:00:05]}  Rfe7 {[%clk 0:00:07]} 97. Rc2 {[%clk 0:00:04]}  Kh7 {[%clk 0:00:07]} 98. Rc6 {[%clk 0:00:05]}  Kg7 {[%clk 0:00:07]} 99. Rc2 {[%clk 0:00:05]}  Rf7 {[%clk 0:00:08]} 100. Rc6 {[%clk 0:00:05]}  g4 {[%clk 0:00:08]} 101. Rc4 {[%clk 0:00:05]}  Rf6 {[%clk 0:00:07]} 102. Rc7+ {[%clk 0:00:05]}  Kg6 {[%clk 0:00:06]} 103. Rc8 {[%clk 0:00:05]}  Re7 {[%clk 0:00:06]} 104. Rg8+ {[%clk 0:00:05]}  Rg7 {[%clk 0:00:06]} 105. Rc8 {[%clk 0:00:06]}  Rgf7 {[%clk 0:00:06]} 106. Rc2 {[%clk 0:00:07]}  Rf3 {[%clk 0:00:05]} 107. Nd5 {[%clk 0:00:06]}  Rd7 {[%clk 0:00:04]} 108. Nf4+ {[%clk 0:00:07]}  Rxf4 {[%clk 0:00:03]} 109. gxf4 {[%clk 0:00:07]}  Rd3 {[%clk 0:00:03]} 110. Rc6+ {[%clk 0:00:06]}  Kf5 {[%clk 0:00:03]} 111. Rc5+ {[%clk 0:00:07]}  Kxf4 {[%clk 0:00:03]} 112. Rxh5 {[%clk 0:00:07]}  Rd2 {[%clk 0:00:01]} 113. Rh8 {[%clk 0:00:07]}  Rc2 {[%clk 0:00:01]} 114. Rf8+ {[%clk 0:00:07]} 1-0


[Site "https://www.chess.com"]